bitfinex/quotes_ETHUSD_20240610
["timestamp","ask_amount","ask_price","bid_price","bid_amount"]
[1718023604131,8.34483114,3675.9,3675.8,11.72368]
[1718023605128,8.34483114,3675.9,3675.8,10.92268]
[1718023606440,8.34483114,3675.9,3675.8,12.095048]
[1718023620149,8.34483114,3675.9,3675.8,14.815538]
[1718023622553,2.3745,3677.2,3676.3,2.72012]
[1718023622761,2.3745,3677.2,3676.3,11.55034]
[1718023623436,2.3745,3677.2,3676.3,14.27046]
[1718023623638,0.02775195,3678.0,3676.3,14.76837413]
[1718023623828,2.3692,3677.4,3676.3,14.76837413]
[1718023624948,5.6e-07,3676.4,3676.3,14.76837413]
[1718023625136,0.02775195,3678.0,3676.9,2.2776]
[1718023625137,2.4334,3677.9,3676.9,2.2776]
[1718023625337,0.16104079,3677.8,3677.2,0.801]
[1718023625549,0.16104079,3677.8,3677.4,0.801]
[1718023625948,0.16104079,3677.8,3677.2,3.801]
[1718023626149,0.02775195,3678.0,3677.7,2.71905]
[1718023626362,0.02775195,3678.0,3677.9,2.71894]
[1718023628269,0.02775195,3678.0,3677.9,8.43788]
[1718023629536,0.02775195,3678.0,3677.9,9.23888]
[1718023631171,0.02775195,3678.0,3677.9,5.71894]
[1718023631344,0.18838463,3678.0,3677.9,5.71894]
[1718023631776,2.51058463,3678.0,3677.9,5.71894]
[1718023632350,1.32054309,3678.0,3677.9,2.71894]
[1718023632569,0.18838463,3678.0,3677.9,2.71894]
[1718023633940,0.18838463,3678.0,3677.9,6.51994]
[1718023634140,0.02775195,3678.0,3677.9,6.51994]
[1718023634342,0.02775195,3678.0,3677.9,8.82314]
[1718023635570,0.02775195,3678.0,3677.9,11.54208]
[1718023635875,0.02775195,3678.0,3677.9,12.696288]
[1718023637483,0.02775195,3678.0,3677.9,11.895288]
[1718023637643,0.02775195,3678.0,3677.9,12.696288]
[1718023640061,0.02775195,3678.0,3677.9,10.393088]
[1718023651588,0.02775195,3678.0,3677.9,5.71894]
[1718023657910,0.02775195,3678.0,3677.9,8.43788]
[1718023661200,0.02775195,3678.0,3677.9,11.15682]
[1718023661401,0.02775195,3678.0,3677.9,13.44682]
[1718023661696,0.02775195,3678.0,3677.9,13.99682]
[1718023662486,0.02775195,3678.0,3677.9,14.79782]
[1718023663682,0.02775195,3678.0,3677.9,13.99682]
[1718023663881,0.02775195,3678.0,3677.9,14.79782]
[1718023668176,0.02775195,3678.0,3677.9,15.65409207]
[1718023669312,0.02775195,3678.0,3677.9,15.64895924]
[1718023670218,0.02775195,3678.0,3677.9,14.79782]
[1718023671418,0.02775195,3678.0,3677.9,15.93951609]
[1718023671731,0.02775195,3678.0,3677.9,14.79782]
[1718023679110,0.02775195,3678.0,3677.9,16.21135257]
[1718023679937,0.02775195,3678.0,3677.9,14.79782]
[1718023680141,0.02775195,3678.0,3677.9,16.21135257]
[1718023684749,0.02775195,3678.0,3677.9,15.41035257]
[1718023684909,0.02775195,3678.0,3677.9,14.79782]
[1718023685539,0.02775195,3678.0,3677.9,16.21135257]
[1718023687069,0.02775195,3678.0,3677.9,15.41035257]
[1718023687232,0.02775195,3678.0,3677.9,16.21135257]
[1718023688560,2.4356,3678.9,3678.0,0.00024805]
[1718023688743,2.4356,3678.9,3678.3,0.801]
[1718023688946,2.4356,3678.9,3678.8,2.71827]
[1718023689115,2.4356,3678.9,3678.8,5.71827]
[1718023689847,10.5903,3678.9,3678.8,5.71827]
[1718023690361,10.74454641,3678.9,3678.8,5.71827]
[1718023692487,11.89910105,3678.9,3678.8,5.71827]
[1718023696476,10.74454641,3678.9,3678.8,5.71827]
[1718023697059,10.74454641,3678.9,3678.8,3.0]
[1718023697274,2.4871,3678.8,3678.6,3.0]
[1718023697473,8.1547,3678.7,3678.6,3.0]
[1718023697784,10.79597043,3678.7,3678.6,3.0]
[1718023697970,10.79597043,3678.7,3678.6,2.972]
[1718023700453,9.46856747,3678.7,3678.5,2.71843]
[1718023700658,2.3071,3678.6,3678.2,2.71866]
[1718023700854,8.1547,3678.5,3678.3,3.0]
[1718023701282,0.15413786,3678.4,3678.3,3.0]
[1718023701589,8.30883786,3678.4,3678.3,3.0]
[1718023726202,8.30883786,3678.4,3678.3,6.730866]
[1718023726731,8.30883786,3678.4,3678.3,7.58279691]
[1718023727796,8.30883786,3678.4,3678.3,6.78179691]
[1718023728000,8.30883786,3678.4,3678.3,7.58279691]
[1718023730220,8.30883786,3678.4,3678.3,6.730866]
[1718023730731,8.1547,3678.4,3678.3,6.730866]
[1718023730940,8.30896808,3678.4,3678.3,6.730866]
[1718023738008,8.30896808,3678.4,3678.3,4.372866]
[1718023738209,8.30896808,3678.4,3678.3,3.571866]
[1718023739340,8.1547,3678.4,3678.3,3.571866]
[1718023739545,8.30906035,3678.4,3678.3,3.571866]
[1718023741941,8.30906035,3678.4,3678.3,3.0]
[1718023770369,10.71736035,3678.4,3678.3,3.0]
[1718023777509,8.30906035,3678.4,3678.3,3.0]
[1718023838684,8.30906035,3678.4,3678.3,5.2874]
[1718023839092,8.1547,3678.4,3678.3,5.2874]
[1718023839315,8.1547,3678.4,3678.3,2.2874]
[1718023839476,8.33100237,3678.4,3678.3,2.2874]
[1718023845310,8.33100237,3678.4,3678.2,5.43735]
[1718023846410,8.33100237,3678.4,3678.2,6.77962088]
[1718023846928,8.33100237,3678.4,3678.3,6.2787]
[1718023847245,8.33100237,3678.4,3678.3,7.41460788]
[1718023848613,8.1547,3678.4,3678.3,7.41460788]
[1718023848827,8.3312535,3678.4,3678.3,7.41460788]
[1718023849022,8.3312535,3678.4,3678.3,7.74261913]
[1718023849210,8.3312535,3678.4,3678.3,6.60671125]
[1718023850020,8.3312535,3678.4,3678.3,7.74261913]
[1718023851310,8.3312535,3678.4,3678.3,6.60671125]
[1718023851915,8.3312535,3678.4,3678.3,5.80571125]
[1718023852114,8.3312535,3678.4,3678.3,3.801]
[1718023852517,8.1547,3678.4,3678.3,3.801]
[1718023852920,8.33147185,3678.4,3678.3,3.801]
[1718023857128,8.33147185,3678.4,3678.3,6.1388]
[1718023857449,8.33147185,3678.4,3678.3,7.27470788]
[1718023857611,8.1547,3678.4,3678.3,7.27470788]
[1718023857810,8.33130807,3678.4,3678.3,7.27470788]
[1718023858006,8.33130807,3678.4,3678.3,6.1388]
[1718023862873,8.33130807,3678.4,3678.3,5.3378]
[1718023863260,8.33130807,3678.4,3678.3,6.1388]
[1718023863642,0.06225577,3679.2,3678.4,2.3187]
[1718023863882,0.06225577,3679.2,3679.1,0.801]
[1718023864056,0.06225577,3679.2,3679.1,6.2371]
[1718023871791,0.06225577,3679.2,3679.1,11.6726]
[1718023872500,2.3477,3679.9,3679.8,2.71753]
[1718023875184,10.5002,3679.9,3679.8,2.71753]
[1718023883511,10.66588634,3679.9,3679.8,2.71753]
[1718023885209,8.31818634,3679.9,3679.8,2.71753]
[1718023913443,8.31818634,3679.9,3679.6,2.71768]
[1718023913664,9.40062619,3679.9,3679.6,2.71768]
[1718023913864,8.31818634,3679.9,3679.6,2.71768]
[1718023919292,8.31818634,3679.9,3679.8,2.71753]
[1718023925309,8.31818634,3679.9,3679.8,8.69266]
[1718023925473,8.1525,3679.9,3679.8,11.69266]
[1718023925669,8.31849733,3679.9,3679.8,12.82620351]
[1718023926299,8.31849733,3679.9,3679.8,11.69266]
[1718023926929,8.31849733,3679.9,3679.8,10.89166]
[1718023927230,8.31849733,3679.9,3679.8,12.54280129]
[1718023928088,8.31849733,3679.9,3679.8,11.74180129]
[1718023928288,8.31849733,3679.9,3679.8,11.69266]
[1718023928599,8.31849733,3679.9,3679.8,12.54280129]
[1718023933312,8.31849733,3679.9,3679.8,11.69266]
[1718023934614,8.31849733,3679.9,3679.8,15.26033129]
[1718023935014,6.15103203,3679.9,3679.8,20.04492813]
[1718023935207,6.15103203,3679.9,3679.8,18.6279593]
[1718023935407,6.15103203,3679.9,3679.8,20.04260859]
[1718023935794,6.15103203,3679.9,3679.8,18.6279593]
[1718023936208,5.90403203,3679.9,3679.8,18.6279593]
[1718023936406,5.90403203,3679.9,3679.8,20.04224569]
[1718023937297,5.17403203,3679.9,3679.8,18.6279593]
[1718023938527,5.5e-06,3679.9,3679.8,18.6279593]
[1718023938745,0.03951211,3680.1,3679.8,18.6279593]
[1718023938955,0.03951211,3680.1,3680.0,9.80153994]
[1718023939254,0.03951211,3680.1,3680.0,13.35153994]
[1718023939429,0.03951211,3680.1,3680.0,18.52499194]
[1718023939614,0.03951211,3680.1,3680.0,20.85949194]
[1718023940216,0.03951211,3680.1,3680.0,18.44408494]
[1718023940429,0.03951211,3680.1,3680.0,17.595715]
[1718023941245,0.03951211,3680.1,3680.0,18.44359172]
[1718023945253,0.03951211,3680.1,3680.0,17.595715]
[1718023945418,0.03951211,3680.1,3680.0,18.44359172]
[1718023946255,0.03951211,3680.1,3680.0,17.595715]
[1718023953440,0.03951211,3680.1,3680.0,17.86669238]
[1718023954029,2.5,3680.4,3680.3,10.49798]
[1718023954172,1.78123054,3680.4,3680.3,14.84898]
[1718023954573,1.78123054,3680.4,3680.3,27.18468]
[1718023954775,1.78123054,3680.4,3680.3,24.843477]
[1718023957414,1.78123054,3680.4,3680.3,24.042477]
[1718023957703,1.78123054,3680.4,3680.3,24.843477]
[1718023958105,1.78123054,3680.4,3680.3,24.570378]
[1718023958406,1.78123054,3680.4,3680.3,23.298106]
[1718023958910,1.78123054,3680.4,3680.3,17.392813]
[1718023959112,1.78123054,3680.4,3680.3,14.245313]
[1718023959285,1.78123054,3680.4,3680.3,12.50248]
[1718023962631,1.78123054,3680.4,3680.3,5.71716]
[1718023963752,4.05783054,3680.4,3680.3,2.71716]
[1718023964109,4.19849424,3680.4,3680.3,2.71716]
[1718023965216,4.19849424,3680.4,3680.3,5.71716]
[1718023965619,4.05783054,3680.4,3680.3,5.71716]
[1718023965825,4.05783054,3680.4,3680.3,6.51816]
[1718023965989,4.19839014,3680.4,3680.3,6.51816]
[1718023968619,4.05783054,3680.4,3680.3,6.51816]
[1718023969010,4.19839014,3680.4,3680.3,6.51816]
[1718023969197,4.19839014,3680.4,3680.3,5.71716]
[1718023971125,4.05783054,3680.4,3680.3,5.71716]
[1718023971490,1.78123054,3680.4,3680.3,5.71716]
[1718023972111,1.92179014,3680.4,3680.3,5.71716]
[1718023981030,1.78123054,3680.4,3680.3,5.71716]
[1718023983034,1.78123054,3680.4,3680.3,8.43432]
[1718023983935,1.78123054,3680.4,3680.3,6.51816]
[1718023984337,1.78123054,3680.4,3680.3,9.23532]
[1718023984558,1.78123054,3680.4,3680.3,10.08203324]
[1718023984927,1.78123054,3680.4,3680.3,12.50203324]
[1718023987860,0.71375109,3680.4,3680.3,12.50203324]
[1718023988024,0.71375109,3680.4,3680.3,12.20532]
[1718023990325,0.71375109,3680.4,3680.3,8.98432]
[1718023990529,0.71375109,3680.4,3680.3,10.0846344]
[1718023991952,0.71375109,3680.4,3680.3,9.23532]
[1718023992269,0.71375109,3680.4,3680.3,10.51351925]
[1718023992430,0.71375109,3680.4,3680.3,11.36282098]
[1718023997765,0.71375109,3680.4,3680.3,10.56182098]
[1718023997960,0.71375109,3680.4,3680.3,11.36282098]
[1718023999881,0.71375109,3680.4,3680.3,10.56182098]
[1718024000053,0.71375109,3680.4,3680.3,11.36284407]
[1718024000253,0.71375109,3680.4,3680.3,10.51351925]
[1718024000453,0.71375109,3680.4,3680.3,11.36288631]
[1718024002064,0.71375109,3680.4,3680.3,7.84472631]
[1718024002389,0.71375109,3680.4,3680.3,6.56652706]
[1718024002562,0.71375109,3680.4,3680.3,5.71716]
[1718024003342,3.18195109,3680.4,3680.3,5.71716]
[1718024006477,3.31136162,3680.4,3680.3,5.71716]
[1718024007750,11.46276162,3680.4,3680.3,5.71716]
[1718024015254,11.46276162,3680.4,3680.1,0.84936706]
[1718024015255,2.4606,3680.3,3680.1,0.84936706]
[1718024015451,2.4606,3680.1,3679.7,10.84690706]
[1718024015689,4.57711725,3680.4,3679.7,9.99754]
[1718024015690,2.4606,3679.9,3679.7,9.99754]
[1718024015890,8.1514,3679.8,3679.7,9.99754]
[1718024016096,8.27629581,3679.8,3679.7,9.99754]
[1718024018488,8.27629581,3679.8,3679.7,7.28]
[1718024018668,8.27629581,3679.8,3679.4,2.71777]
[1718024018864,8.27629581,3679.8,3679.5,3.0]
[1718024019264,9.43008539,3679.8,3679.5,3.0]
[1718024019465,10.23108539,3679.8,3679.5,3.0]
[1718024019782,9.07729581,3679.8,3679.5,3.0]
[1718024020292,8.27629581,3679.8,3679.5,3.0]
[1718024035334,8.27629581,3679.8,3679.6,2.71768]
[1718024045667,9.07729581,3679.8,3679.6,2.71768]
[1718024050552,8.27629581,3679.8,3679.6,2.71768]
[1718024060590,10.71199581,3679.8,3679.6,2.71768]
[1718024061497,8.27629581,3679.8,3679.6,2.71768]
[1718024069404,8.27629581,3679.8,3679.5,2.71769]
[1718024071186,8.27629581,3679.8,3679.3,0.84936706]
[1718024071507,10.65659581,3679.8,3679.3,6.56719706]
[1718024072212,10.65659581,3679.8,3679.3,5.71783]
[1718024072376,8.27629581,3679.8,3679.4,2.71776]
[1718024080318,8.27629581,3679.8,3679.3,3.0]
[1718024080489,8.27629581,3679.8,3679.2,3.84936706]
[1718024081404,8.27629581,3679.8,3679.4,2.71782]
[1718024081586,9.07729581,3679.8,3679.4,2.71782]
[1718024084133,8.27629581,3679.8,3679.5,2.71769]
[1718024096432,8.27629581,3679.8,3679.3,2.71789]
[1718024096798,9.07729581,3679.8,3679.3,2.71789]
[1718024097337,2.3525,3679.5,3679.2,0.84936706]
[1718024097511,0.801,3679.3,3679.1,7.28]
[1718024097707,8.26795547,3679.2,3679.1,7.28]
[1718024100844,8.26795547,3679.2,3679.0,2.71805]
[1718024101851,8.26795547,3679.2,3678.8,3.56763706]
[1718024102012,8.26795547,3679.2,3678.9,3.0]
[1718024103140,8.26795547,3679.2,3679.0,2.71812]
[1718024111952,0.801,3679.1,3678.7,3.56764706]
[1718024112153,0.801,3679.1,3678.7,2.71828]
[1718024112154,3.2887,3679.1,3678.7,2.71828]
[1718024112353,0.11631149,3679.0,3678.7,2.71828]
[1718024112556,2.4877,3679.1,3678.7,2.71828]
[1718024113251,8.1514,3679.0,3678.7,2.71828]
[1718024113763,0.11631149,3678.9,3678.7,2.71828]
[1718024117626,8.1514,3678.8,3678.7,2.71828]
[1718024118137,8.26761722,3678.8,3678.5,5.71849]
[1718024119092,8.1514,3678.8,3678.5,5.71849]
[1718024119439,0.11622832,3678.7,3678.5,5.71849]
[1718024125062,0.11622832,3678.7,3678.5,6.51949]
[1718024132146,0.11622832,3678.7,3678.5,5.71849]
[1718024140676,8.1514,3678.8,3678.7,2.71835]
[1718024141064,8.26766159,3678.8,3678.7,2.71835]
[1718024154833,8.26766159,3678.8,3678.5,3.84936706]
[1718024155035,9.32407775,3678.8,3678.5,0.84936706]
[1718024155245,0.801,3678.6,3678.4,3.56786706]
[1718024155451,10.591,3678.5,3678.4,2.7185]
[1718024155606,10.7068623,3678.5,3678.2,8.12936706]
[1718024155949,10.7068623,3678.5,3678.2,0.84936706]
[1718024156147,10.7068623,3678.5,3678.1,3.56808706]
[1718024158430,0.801,3678.4,3678.1,3.56808706]
[1718024158636,8.1514,3678.3,3678.1,3.56808706]
[1718024158800,8.26686844,3678.3,3678.1,3.56808706]
[1718024159336,8.26686844,3678.3,3678.1,2.71872]
[1718024166708,8.1514,3678.3,3678.1,2.71872]
[1718024167249,0.11529645,3678.2,3678.1,2.71872]
[1718024167410,8.1514,3678.3,3678.1,5.71872]
[1718024167606,0.11529645,3678.2,3678.1,2.71872]
[1718024167928,8.1514,3678.2,3678.1,5.71872]
[1718024168106,8.26669645,3678.2,3678.1,5.71872]
[1718024179223,8.26669645,3678.2,3678.1,6.89559771]
[1718024179461,8.1514,3678.2,3678.1,6.89559771]
[1718024179649,8.2667686,3678.2,3678.1,6.89559771]
[1718024181553,8.2667686,3678.2,3678.1,5.71872]
[1718024189745,8.1514,3678.2,3678.1,5.71872]
[1718024190052,8.26672422,3678.2,3678.1,5.71872]
[1718024203168,8.26672422,3678.2,3678.1,3.0]
[1718024203381,8.26672422,3678.2,3677.9,3.84936706]
[1718024204488,9.40340664,3678.2,3677.9,3.84936706]
[1718024205394,8.26672422,3678.2,3677.9,3.84936706]
[1718024206787,8.26672422,3678.2,3678.0,2.71886]
[1718024214966,0.801,3678.1,3678.0,2.71886]
[1718024215163,8.9524,3678.1,3678.0,3.0]
[1718024215367,9.06761878,3678.1,3678.0,3.0]
[1718024215600,9.06761878,3678.1,3677.9,3.0]
[1718024217502,9.06761878,3678.1,3677.8,3.56837706]
[1718024218398,0.801,3677.9,3677.8,3.56837706]
[1718024218705,8.1514,3677.9,3677.8,5.71901]
[1718024219003,8.26661878,3677.9,3677.8,6.56837706]
[1718024222868,10.20766066,3677.9,3677.8,3.56837706]
[1718024223276,10.20766066,3677.9,3677.8,2.71901]
[1718024223669,10.20766066,3677.9,3677.5,3.56854706]
[1718024223866,10.20766066,3677.9,3677.5,2.71918]
[1718024224801,0.801,3677.7,3677.5,2.71918]
[1718024225006,8.1514,3677.6,3677.5,2.71918]
[1718024225166,8.26630805,3677.6,3677.5,2.71918]
[1718024239602,10.18001301,3677.6,3677.3,2.71938]
[1718024240200,0.801,3677.4,3677.3,2.71938]
[1718024240531,2.3765,3677.3,3677.2,3.0]
[1718024240712,11.6408481,3677.3,3677.2,3.0]
[1718024241028,11.75520117,3677.3,3677.2,3.0]
[1718024241436,11.75520117,3677.3,3677.1,2.71953]
[1718024241734,0.801,3677.2,3677.1,2.71953]
[1718024242029,9.06659763,3677.2,3677.1,2.71953]
[1718024242204,10.3222022,3677.2,3676.7,3.0]
[1718024242405,10.3222022,3677.2,3676.8,2.71969]
[1718024242406,0.801,3677.0,3676.8,2.71969]
[1718024242614,8.1514,3676.9,3676.8,2.71969]
[1718024242806,8.26512154,3676.9,3676.8,2.71969]
[1718024245046,9.40205369,3676.9,3676.5,2.7199]
[1718024245348,0.801,3676.8,3676.5,2.7199]
[1718024245547,8.26501604,3676.7,3676.5,2.7199]
[1718024250329,3.0787,3676.6,3676.2,2.72018]
[1718024250706,8.26487721,3676.5,3676.2,2.72018]
[1718024252292,9.39923493,3676.5,3676.2,2.72018]
[1718024252493,0.801,3676.3,3676.2,2.72018]
[1718024252645,8.9524,3676.3,3676.2,2.72018]
[1718024252847,9.06579944,3676.3,3676.2,2.72018]
[1718024253479,9.06579944,3676.3,3675.9,8.22035]
[1718024253684,0.801,3676.1,3675.9,5.22035]
[1718024253868,8.1514,3676.0,3675.9,5.22035]
[1718024254058,8.2642552,3676.0,3675.9,5.22035]
[1718024263005,9.0652552,3676.0,3675.9,5.22035]
[1718024263698,9.0652552,3676.0,3675.9,2.5]
[1718024263999,10.20447072,3676.0,3675.9,2.5]
[1718024264519,9.40347072,3676.0,3675.9,2.5]
[1718024266181,8.2642552,3676.0,3675.9,2.5]
[1718024272650,9.0652552,3676.0,3675.9,2.5]
[1718024279440,11.5245552,3676.0,3675.9,2.5]
[1718024286767,14.3825552,3676.0,3675.9,2.5]
[1718024287100,14.9325552,3676.0,3675.9,2.5]
[1718024287300,16.96985572,3676.0,3675.9,2.5]
[1718024313513,2.72118,3674.9,3674.7,2.2717]
[1718024313680,2.72118,3674.9,3674.6,0.00738051]
[1718024313681,8.9524,3674.8,3674.6,0.00738051]
[1718024313878,9.06234209,3674.8,3674.6,0.00738051]
[1718024316171,11.78364209,3674.8,3674.6,0.00738051]
[1718024317258,12.9620063,3674.8,3674.6,0.00738051]
[1718024318893,3.412,3674.7,3674.6,0.00738051]
[1718024319103,11.5634,3674.7,3674.6,0.00738051]
[1718024319297,11.67316962,3674.7,3674.6,0.00738051]
[1718024327144,12.47416962,3674.7,3674.6,0.00738051]
[1718024327433,14.630155,3674.7,3674.6,0.00738051]
[1718024329785,17.119055,3674.7,3674.6,0.00738051]
[1718024331681,17.869055,3674.7,3674.6,0.00738051]
[1718024331879,17.869055,3674.7,3672.6,0.801]
[1718024331880,2.862,3673.5,3672.7,2.2575]
[1718024332108,2.72248,3673.2,3672.7,2.2575]
[1718024332386,0.801,3672.8,3672.7,2.2575]
[1718024332611,8.1514,3672.8,3672.7,2.2575]
[1718024332819,8.25944812,3672.8,3672.7,2.2575]
[1718024333119,9.06044812,3672.8,3672.7,2.2575]
[1718024333332,9.06044812,3672.8,3672.0,7.28]
[1718024333333,9.06044812,3672.8,3672.0,2.2575]
[1718024333477,8.25944812,3672.8,3672.4,2.72298]
[1718024333680,9.06044812,3672.8,3672.4,2.72298]
[1718024334509,0.801,3672.6,3672.4,2.72298]
[1718024334726,8.1514,3672.5,3672.4,2.72298]
[1718024335322,8.25913629,3672.5,3672.4,2.72298]
[1718024342900,8.25913629,3672.5,3672.4,5.83218]
[1718024343101,8.1514,3672.5,3672.4,6.415398]
[1718024343422,2.42711847,3672.5,3672.4,14.861418]
[1718024343598,7.28,3674.6,3672.8,0.6483]
[1718024343797,2.45323952,3675.5,3673.9,0.801]
[1718024343798,0.10369289,3674.5,3673.9,0.801]
[1718024344007,8.165,3674.4,3674.2,2.72166]
[1718024344228,8.165,3674.4,3674.3,0.801]
[1718024344422,8.165,3674.4,3674.2,2.72166]
[1718024344720,8.26869289,3674.4,3674.2,2.72166]
[1718024345710,8.26869289,3674.4,3674.2,3.52266]
[1718024346994,8.26869289,3674.4,3674.2,3.939756]
[1718024347610,8.26869289,3674.4,3674.2,2.78461936]
[1718024352624,8.165,3674.4,3674.2,2.78461936]
[1718024352817,0.10476732,3674.3,3674.2,2.78461936]
[1718024353002,8.26976732,3674.3,3674.2,3.58561936]
[1718024354417,8.26976732,3674.3,3674.2,6.30729936]
[1718024354739,8.26976732,3674.3,3674.2,7.0028593]
[1718024357195,8.26976732,3674.3,3674.2,6.2018593]
[1718024365331,8.26976732,3674.3,3674.2,5.50629936]
[1718024365646,8.165,3674.3,3674.2,5.50629936]
[1718024366017,8.27099196,3674.3,3674.2,5.50629936]
[1718024369055,8.27099196,3674.3,3674.2,6.30729936]
[1718024371855,8.27099196,3674.3,3674.2,9.02897936]
[1718024372034,8.27099196,3674.3,3674.2,9.9967073]
[1718024379256,8.27099196,3674.3,3674.2,9.02897936]
[1718024381930,8.27099196,3674.3,3674.2,8.22797936]
[1718024384061,8.27099196,3674.3,3674.2,9.02897936]
[1718024385753,8.27099196,3674.3,3674.2,8.22797936]
[1718024385923,8.27099196,3674.3,3674.2,9.02897936]
[1718024387174,8.27099196,3674.3,3674.2,8.22797936]
[1718024387476,8.27099196,3674.3,3674.2,9.02897936]
[1718024388175,8.165,3674.3,3674.2,9.02897936]
[1718024388480,8.165,3674.3,3674.2,9.9967073]
[1718024388659,8.2711088,3674.3,3674.2,9.9967073]
[1718024388860,8.165,3674.3,3674.2,9.9967073]
[1718024389177,8.2711088,3674.3,3674.2,9.9967073]
[1718024389350,8.2711088,3674.3,3674.2,10.84607436]
[1718024391664,8.2711088,3674.3,3674.2,9.9967073]
[1718024391976,8.165,3674.3,3674.2,9.9967073]
[1718024392147,8.27119222,3674.3,3674.2,9.9967073]
[1718024392473,8.27119222,3674.3,3674.2,11.12786722]
[1718024392972,8.165,3674.3,3674.2,11.12786722]
[1718024393279,8.27119222,3674.3,3674.2,11.12786722]
[1718024400594,8.27119222,3674.3,3674.2,10.32686722]
[1718024400893,8.27119222,3674.3,3674.2,10.16013928]
[1718024401072,8.27119222,3674.3,3674.2,9.02897936]
[1718024401278,8.27119222,3674.3,3674.2,9.88423349]
[1718024401497,8.27119222,3674.3,3674.2,9.02897936]
[1718024403294,8.27119222,3674.3,3674.2,8.22797936]
[1718024403657,8.27119222,3674.3,3674.2,9.02897936]
[1718024403993,8.27119222,3674.3,3674.2,9.08314787]
[1718024404288,8.27119222,3674.3,3674.2,9.88414787]
[1718024407281,8.27119222,3674.3,3674.2,9.08314787]
[1718024407484,8.27119222,3674.3,3674.2,9.88414787]
[1718024408903,2.22e-06,3674.3,3674.2,10.98567865]
[1718024409212,2.22e-06,3674.3,3674.2,19.34215006]
[1718024409412,2.22e-06,3674.3,3674.2,18.21099014]
[1718024409718,2.22e-06,3674.3,3674.2,18.76099014]
[1718024409964,2.22e-06,3674.3,3674.2,20.47138771]
[1718024410089,2.22e-06,3674.3,3674.2,18.76099014]
[1718024410430,2.22e-06,3674.3,3674.2,17.95999014]
[1718024410707,2.22e-06,3674.3,3674.2,19.91897983]
[1718024410897,2.22e-06,3674.3,3674.2,18.21099014]
[1718024411717,2.22e-06,3674.3,3674.2,15.48931014]
[1718024412997,2.22e-06,3674.3,3674.2,14.68831014]
[1718024413197,2.22e-06,3674.3,3674.2,15.48931014]
[1718024413699,2.22e-06,3674.3,3674.2,13.73357534]
[1718024413939,2.22e-06,3674.3,3674.2,13.14851083]
[1718024415333,2.22e-06,3674.3,3674.2,12.34751083]
[1718024415536,2.22e-06,3674.3,3674.2,13.14851083]
[1718024417344,2.4243,3675.1,3675.0,2.72108]
[1718024417836,2.52008411,3675.1,3675.0,2.72108]
[1718024418038,10.68328411,3675.1,3675.0,2.72108]
[1718024421073,8.25898411,3675.1,3675.0,3.52208]
[1718024422089,8.25898411,3675.1,3675.0,2.72108]
[1718024424780,8.25898411,3675.1,3675.0,6.24316]
[1718024425246,8.1632,3675.1,3675.0,6.867476]
[1718024425435,8.25911784,3675.1,3675.0,6.867476]
[1718024426786,8.25911784,3675.1,3675.0,6.24316]
[1718024426958,8.25911784,3675.1,3675.0,5.44216]
[1718024427140,8.1632,3675.1,3675.0,6.24316]
[1718024427472,8.25948556,3675.1,3675.0,6.24316]
[1718024427834,8.25948556,3675.1,3675.0,5.44216]
[1718024428133,8.25948556,3675.1,3675.0,6.24316]
[1718024431072,8.25948556,3675.1,3675.0,2.72108]
[1718024431073,10.73668556,3675.1,3675.0,2.72108]
[1718024431275,11.56263412,3675.1,3675.0,2.72108]
[1718024439558,10.73668556,3675.1,3675.0,2.72108]
[1718024444491,10.73668556,3675.1,3674.7,2.72125]
[1718024445299,10.73668556,3675.1,3675.0,2.72108]
[1718024450796,10.73668556,3675.1,3674.7,2.72123]
[1718024451006,1.07366856,3675.0,3674.7,2.72123]
[1718024451509,8.25561469,3674.9,3674.7,2.72123]
[1718024473948,2.3713,3674.8,3674.7,2.72123]
[1718024474147,10.5345,3674.8,3674.7,2.72123]
[1718024474331,10.62681423,3674.8,3674.7,2.72123]
[1718024474523,11.76959565,3674.8,3674.7,2.72123]
[1718024475864,11.76959565,3674.8,3674.5,2.72145]
[1718024476418,11.76959565,3674.8,3674.2,2.78456936]
[1718024476943,11.76959565,3674.8,3674.4,2.72152]
[1718024478337,0.801,3674.5,3674.2,0.06295936]
[1718024478654,8.1632,3674.4,3674.2,0.06295936]
[1718024478956,8.25538582,3674.4,3674.2,0.06295936]
[1718024480126,8.25538582,3674.4,3674.3,2.7216]
[1718024490459,8.25538582,3674.4,3674.2,0.06295936]
[1718024490942,8.25538582,3674.4,3674.2,2.78462936]
[1718024503970,8.87600366,3674.4,3674.2,2.78462936]
[1718024510368,8.87600366,3674.4,3674.2,0.06295936]
[1718024517475,2.4703,3674.3,3674.2,0.06295936]
[1718024517799,10.72150371,3674.3,3674.2,0.06295936]
[1718024518169,8.25120371,3674.3,3674.2,0.06295936]
[1718024525621,9.21848587,3674.3,3674.2,0.06295936]
[1718024527708,11.69268587,3674.3,3674.2,0.06295936]
[1718024529445,12.49368587,3674.3,3674.2,0.06295936]
[1718024532302,11.69268587,3674.3,3674.2,0.06295936]
[1718024532511,9.21848587,3674.3,3674.2,0.06295936]
[1718024532858,10.01948587,3674.3,3674.2,0.06295936]
[1718024534809,9.21848587,3674.3,3674.2,0.06295936]
[1718024535140,10.01948587,3674.3,3674.2,0.06295936]
[1718024535505,8.25120371,3674.3,3674.2,0.06295936]
[1718024544763,9.05220371,3674.3,3674.2,0.06295936]
[1718024549280,11.49360371,3674.3,3674.2,0.06295936]
[1718024551070,9.05220371,3674.3,3673.2,2.72235]
[1718024551272,0.801,3673.6,3673.2,2.72235]
[1718024551482,8.1632,3673.5,3673.2,2.72235]
[1718024551780,8.25099674,3673.5,3673.2,2.72235]
[1718024565689,9.67564741,3673.5,3673.2,2.72235]
[1718024565885,9.67564741,3673.5,3672.9,10.00257]
[1718024566092,9.67564741,3673.5,3672.9,10.06555164]
[1718024566596,9.67564741,3673.5,3672.9,2.78555164]
[1718024569600,2.3524,3673.4,3672.9,2.78555164]
[1718024569895,8.1632,3673.3,3672.9,2.78555164]
[1718024570199,8.25030298,3673.3,3672.9,2.78555164]
[1718024572793,8.25030298,3673.3,3673.0,2.72249]
[1718024581173,3.5235,3673.1,3672.9,0.06298164]
[1718024581375,10.59031904,3673.0,3672.9,0.06298164]
[1718024581695,11.39131904,3673.0,3672.9,0.06298164]
[1718024581892,10.59031904,3673.0,3672.9,0.06298164]